[Event "Schack-SM 2022: Mastarklassen"]
[Site "Fyrishov, Idrottsgatan 2, Uppsala, Sweden"]
[Date "2022.07.02"]
[Round "1.6"]
[White "Bjorkman, Filip"]
[Black "Landgren, Andreas"]
[Result "1-0"]
[TimeControl "90 minutes for 40 moves + 30 minutes for the rest of the game + 30 seconds per move from move one."]
[BlackTitle "FM"]
[WhiteFideId "1734970"]
[BlackFideId "1704311"]
[WhiteElo "2066"]
[BlackElo "2224"]

1. e4 {[%clk 01:30:56]} {[%emt 00:00:03]} e5 {[%clk 01:30:51]} {[%emt
00:00:10]} 2. Nf3 {[%clk 01:31:19]} {[%emt 00:00:07]} Nc6 {[%clk 01:31:14]}
{[%emt 00:00:08]} 3. Bc4 {[%clk 01:31:07]} {[%emt 00:00:41]} Bc5 {[%clk
01:31:34]} {[%emt 00:00:10]} 4. c3 {[%clk 01:31:30]} {[%emt 00:00:07]} Nf6
{[%clk 01:31:54]} {[%emt 00:00:10]} 5. d4 {[%clk 01:31:53]} {[%emt 00:00:07]}
exd4 {[%clk 01:32:15]} {[%emt 00:00:09]} 6. e5 {[%clk 01:32:17]} {[%emt
00:00:07]} d5 {[%clk 01:32:32]} {[%emt 00:00:12]} 7. Bb5 {[%clk 01:32:41]}
{[%emt 00:00:06]} Ne4 {[%clk 01:32:38]} {[%emt 00:00:24]} 8. cxd4 {[%clk
01:33:04]} {[%emt 00:00:08]} Bb6 {[%clk 01:32:25]} {[%emt 00:00:42]} 9. Nc3
{[%clk 01:33:03]} {[%emt 00:00:31]} O-O {[%clk 01:29:36]} {[%emt 00:03:20]} 10.
Be3 {[%clk 01:33:12]} {[%emt 00:00:21]} Bg4 {[%clk 01:27:20]} {[%emt 00:02:46]}
11. h3 {[%clk 01:33:22]} {[%emt 00:00:19]} Bh5 {[%clk 01:26:08]} {[%emt
00:01:42]} 12. O-O {[%clk 01:19:06]} {[%emt 00:14:46]} Ba5 {[%clk 01:22:46]}
{[%emt 00:03:52]} 13. Qb3 {[%clk 01:13:58]} {[%emt 00:05:37]} Bxc3 {[%clk
01:03:31]} {[%emt 00:19:45]} 14. bxc3 {[%clk 01:14:07]} {[%emt 00:00:22]} Bxf3
{[%clk 01:03:40]} {[%emt 00:00:21]} 15. gxf3 {[%clk 01:14:30]} {[%emt
00:00:07]} Ng5 {[%clk 01:04:01]} {[%emt 00:00:09]} 16. Kg2 {[%clk 01:14:26]}
{[%emt 00:00:33]} Ne6 {[%clk 01:02:02]} {[%emt 00:02:29]} 17. f4 {[%clk
01:05:32]} {[%emt 00:09:24]} f5 {[%emt 00:03:20]} 18. Qd1 {[%clk 00:40:38]}
{[%emt 00:25:13]} Ne7 {[%clk 00:52:43]} {[%emt 00:07:11]} 19. Qf3 {[%clk
00:40:34]} {[%emt 00:00:35]} Kh8 {[%clk 00:31:31]} {[%emt 00:21:42]} 20. Kh2
{[%clk 00:40:37]} {[%emt 00:00:26]} c6 {[%clk 00:24:22]} {[%emt 00:07:40]} 21.
Bd3 {[%clk 00:41:04]} {[%emt 00:00:03]} b5 {[%clk 00:23:48]} {[%emt 00:01:04]}
22. a4 {[%clk 00:36:21]} {[%emt 00:05:15]} a6 {[%clk 00:21:44]} {[%emt
00:02:33]} 23. Ra2 {[%clk 00:36:14]} {[%emt 00:00:36]} Rb8 {[%clk 00:15:43]}
{[%emt 00:06:32]} 24. axb5 {[%clk 00:34:13]} {[%emt 00:02:31]} axb5 {[%clk
00:16:06]} {[%emt 00:00:07]} 25. Rb1 {[%clk 00:31:30]} {[%emt 00:03:13]} Qc7
{[%clk 00:14:30]} {[%emt 00:02:06]} 26. Ra6 {[%clk 00:28:58]} {[%emt 00:03:01]}
Qc8 {[%clk 00:11:05]} {[%emt 00:03:55]} 27. Ra7 {[%clk 00:28:39]} {[%emt
00:00:48]} Nc7 {[%clk 00:08:16]} {[%emt 00:03:21]} 28. Bc1 {[%clk 00:27:25]}
{[%emt 00:01:42]} Ra8 {[%clk 00:07:46]} {[%emt 00:01:01]} 29. Rba1 {[%clk
00:27:29]} {[%emt 00:00:26]} Rxa7 {[%clk 00:07:42]} {[%emt 00:00:34]} 30. Rxa7
{[%clk 00:27:57]} {[%emt 00:00:02]} Qb8 {[%clk 00:07:55]} {[%emt 00:00:18]} 31.
Ra1 {[%clk 00:28:18]} {[%emt 00:00:08]} Qb7 {[%clk 00:06:47]} {[%emt 00:01:38]}
32. Qh5 {[%clk 00:28:19]} {[%emt 00:00:28]} Ne6 {[%clk 00:05:08]} {[%emt
00:02:10]} 33. Kg3 {[%clk 00:21:51]} {[%emt 00:06:58]} g6 {[%clk 00:04:33]}
{[%emt 00:01:06]} 34. Qe2 {[%clk 00:16:23]} {[%emt 00:05:58]} Ra8 {[%clk
00:04:16]} {[%emt 00:00:47]} 35. Ra3 {[%clk 00:16:12]} {[%emt 00:00:40]} Nc8
{[%clk 00:04:13]} {[%emt 00:00:33]} 36. Qa2 {[%clk 00:16:25]} {[%emt 00:00:16]}
Nb6 {[%clk 00:04:23]} {[%emt 00:00:20]} 37. h4 {[%clk 00:15:47]} {[%emt
00:01:07]} Kg7 {[%clk 00:03:01]} {[%emt 00:01:53]} 38. Qb3 {[%clk 00:12:52]}
{[%emt 00:03:25]} Kf7 {[%clk 00:02:06]} {[%emt 00:01:25]} 39. Qb4 {[%clk
00:12:52]} {[%emt 00:00:30]} Nc8 {[%clk 00:00:54]} {[%emt 00:01:42]} 40. c4
{[%clk 00:09:15]} {[%emt 00:04:07]} Rxa3 {[%clk 00:00:41]} {[%emt 00:00:43]} 41.
Bxa3 {[%clk 00:09:35]} {[%emt 00:00:10]} dxc4 {[%clk 00:27:14]} {[%emt
00:03:57]} 42. Bxc4 {[%clk 00:39:57]} {[%emt 00:00:08]} Ne7 {[%clk 00:27:07]}
{[%emt 00:00:37]} 43. Bxe6+ {[%clk 00:38:16]} {[%emt 00:02:11]} Kxe6 {[%clk
00:26:46]} {[%emt 00:00:51]} 44. Qd6+ {[%clk 00:38:40]} {[%emt 00:00:06]} Kf7
{[%clk 00:27:11]} {[%emt 00:00:05]} 45. Qf6+ {[%clk 00:38:33]} {[%emt
00:00:36]} Ke8 {[%clk 00:27:36]} {[%emt 00:00:06]} 46. e6 {[%clk 00:38:15]}
{[%emt 00:00:48]} 1-0

[Event "Schack-SM 2022: Mastarklassen"]
[Site "Fyrishov, Idrottsgatan 2, Uppsala, Sweden"]
[Date "2022.07.02"]
[Round "1.7"]
[White "Lundberg, David"]
[Black "Jogstad, Daniel"]
[Result "0-1"]
[TimeControl "90 minutes for 40 moves + 30 minutes for the rest of the game + 30 seconds per move from move one."]
[BlackTitle "CM"]
[WhiteFideId "1707051"]
[BlackFideId "1718959"]
[WhiteElo "2219"]
[BlackElo "2057"]

1. d4 {[%clk 01:29:42]} {[%emt 00:01:17]} d5 {[%clk 01:29:18]} {[%emt
00:01:43]} 2. Nf3 {[%clk 01:25:55]} {[%emt 00:04:16]} Nf6 {[%clk 01:29:32]}
{[%emt 00:00:16]} 3. c4 {[%clk 01:26:11]} {[%emt 00:00:15]} c6 {[%clk
01:29:54]} {[%emt 00:00:08]} 4. Nc3 {[%clk 01:25:54]} {[%emt 00:00:47]} e6
{[%clk 01:30:14]} {[%emt 00:00:09]} 5. Bg5 {[%clk 01:20:20]} {[%emt 00:06:04]}
h6 {[%clk 01:28:45]} {[%emt 00:01:58]} 6. Bxf6 {[%clk 01:16:13]} {[%emt
00:04:38]} Qxf6 {[%clk 01:29:06]} {[%emt 00:00:09]} 7. e4 {[%clk 01:16:36]}
{[%emt 00:00:07]} dxe4 {[%clk 01:28:51]} {[%emt 00:00:45]} 8. Nxe4 {[%clk
01:16:58]} {[%emt 00:00:08]} Bb4+ {[%clk 01:27:16]} {[%emt 00:02:04]} 9. Ke2
{[%clk 01:08:07]} {[%emt 00:09:21]} Qf4 {[%clk 01:24:29]} {[%emt 00:03:18]} 10.
Qd3 {[%clk 01:02:51]} {[%emt 00:05:46]} Be7 {[%clk 01:24:37]} {[%emt 00:00:22]}
11. g3 {[%clk 01:02:57]} {[%emt 00:00:25]} Qc7 {[%clk 01:24:56]} {[%emt
00:00:11]} 12. Bg2 {[%clk 01:02:57]} {[%emt 00:00:30]} O-O {[%clk 01:20:08]}
{[%emt 00:05:16]} 13. Rhe1 {[%clk 01:00:27]} {[%emt 00:03:02]} b6 {[%clk
01:16:43]} {[%emt 00:03:55]} 14. Kf1 {[%clk 00:56:15]} {[%emt 00:04:43]} c5
{[%clk 01:16:33]} {[%emt 00:00:39]} 15. dxc5 {[%clk 00:40:38]} {[%emt
00:16:07]} bxc5 {[%clk 01:16:05]} {[%emt 00:00:58]} 16. Qe3 {[%clk 00:40:49]}
{[%emt 00:00:19]} Bb7 {[%clk 01:14:56]} {[%emt 00:01:38]} 17. h4 {[%clk
00:39:14]} {[%emt 00:02:05]} Nd7 {[%clk 01:11:27]} {[%emt 00:03:59]} 18. Rad1
{[%clk 00:29:10]} {[%emt 00:10:35]} Nf6 {[%clk 01:10:44]} {[%emt 00:01:13]} 19.
Nxf6+ {[%clk 00:27:12]} {[%emt 00:02:27]} Bxf6 {[%clk 01:11:09]} {[%emt
00:00:06]} 20. b3 {[%clk 00:22:48]} {[%emt 00:04:55]} Rad8 {[%clk 01:10:57]}
{[%emt 00:00:42]} 21. h5 {[%clk 00:17:59]} {[%emt 00:05:19]} Qa5 {[%clk
00:57:49]} {[%emt 00:13:37]} 22. Qe2 {[%clk 00:09:01]} {[%emt 00:09:28]} Qc3
{[%clk 00:47:14]} {[%emt 00:11:06]} 23. Rxd8 {[%clk 00:06:54]} {[%emt
00:02:38]} Rxd8 {[%clk 00:47:29]} {[%emt 00:00:14]} 24. Rd1 {[%clk 00:07:07]}
{[%emt 00:00:17]} Rxd1+ {[%clk 00:46:21]} {[%emt 00:01:40]} 25. Qxd1 {[%clk
00:07:34]} {[%emt 00:00:02]} Bd4 {[%clk 00:41:43]} {[%emt 00:05:07]} 26. Qe2
{[%clk 00:03:59]} {[%emt 00:04:06]} e5 {[%clk 00:37:09]} {[%emt 00:05:04]} 27.
Ne1 {[%clk 00:03:40]} {[%emt 00:00:48]} Bc8 {[%clk 00:36:50]} {[%emt 00:00:49]}
28. g4 {[%clk 00:01:58]} {[%emt 00:02:11]} f5 {[%clk 00:35:05]} {[%emt
00:02:16]} 29. Bd5+ {[%clk 00:01:52]} {[%emt 00:00:36]} Kh8 {[%clk 00:34:41]}
{[%emt 00:00:52]} 30. gxf5 {[%clk 00:01:06]} {[%emt 00:01:17]} Bxf5 {[%clk
00:34:30]} {[%emt 00:00:41]} 31. Bf3 {[%clk 00:01:14]} {[%emt 00:00:21]} Bb1
{[%clk 00:20:06]} {[%emt 00:14:54]} 32. Be4 {[%clk 00:01:25]} {[%emt 00:00:20]}
Qh3+ {[%clk 00:20:03]} {[%emt 00:00:33]} 33. Kg1 {[%clk 00:00:54]} {[%emt
00:01:02]} Qg3+ {[%clk 00:19:05]} {[%emt 00:01:27]} 34. Bg2 {[%clk 00:01:04]}
{[%emt 00:00:19]} e4 {[%clk 00:18:28]} {[%emt 00:01:08]} 35. Kf1 {[%clk
00:01:03]} {[%emt 00:00:32]} Qf4 {[%clk 00:18:05]} {[%emt 00:00:52]} 36. Nc2
{[%clk 00:00:44]} {[%emt 00:00:49]} Qc1+ {[%clk 00:18:07]} {[%emt 00:00:28]}
0-1

[Event "Schack-SM 2022: Mastarklassen"]
[Site "Fyrishov, Idrottsgatan 2, Uppsala, Sweden"]
[Date "2022.07.02"]
[Round "1.8"]
[White "Styf, Josef"]
[Black "Malmstig, Erik"]
[Result "0-1"]
[TimeControl "90 minutes for 40 moves + 30 minutes for the rest of the game + 30 seconds per move from move one."]
[BlackTitle "FM"]
[WhiteFideId "1708279"]
[BlackFideId "1702866"]
[WhiteElo "2048"]
[BlackElo "2204"]

1. e4 {[%emt 00:03:43]} c5 {[%clk 00:00:00]} {[%emt 00:00:11]} 2. Nf3 d6 {[%clk
00:00:00]} {[%emt 00:00:46]} 3. d4 cxd4 {[%emt 00:00:29]} 4. Nxd4 {[%emt
00:00:05]} Nf6 {[%emt 00:00:10]} 5. f3 {[%emt 00:00:15]} a6 {[%clk 01:30:38]}
{[%emt 00:01:30]} 6. c4 {[%clk 01:31:19]} {[%emt 00:00:34]} e6 {[%clk
01:30:03]} {[%emt 00:01:04]} 7. Nc3 {[%clk 01:28:29]} {[%emt 00:03:20]} Be7
{[%clk 01:27:38]} {[%emt 00:02:55]} 8. Be3 {[%clk 01:27:23]} {[%emt 00:01:36]}
Qc7 {[%clk 01:26:48]} {[%emt 00:01:21]} 9. Rc1 {[%clk 01:25:17]} {[%emt
00:02:36]} O-O {[%clk 01:26:38]} {[%emt 00:00:41]} 10. Be2 {[%clk 01:25:02]}
{[%emt 00:00:45]} Nbd7 {[%clk 01:26:09]} {[%emt 00:00:58]} 11. O-O {[%clk
01:22:45]} {[%emt 00:02:47]} b6 {[%clk 01:21:43]} {[%emt 00:04:57]} 12. Qd2
{[%clk 01:14:19]} {[%emt 00:08:56]} Bb7 {[%clk 01:18:47]} {[%emt 00:03:26]} 13.
Rfd1 {[%clk 01:10:27]} {[%emt 00:04:22]} Rac8 {[%clk 01:16:01]} {[%emt
00:03:16]} 14. Qe1 {[%clk 01:01:28]} {[%emt 00:09:29]} Rfe8 {[%clk 01:10:30]}
{[%emt 00:06:02]} 15. Qf2 {[%clk 00:55:29]} {[%emt 00:06:29]} Qb8 {[%clk
01:07:06]} {[%emt 00:03:53]} 16. Nb3 {[%clk 00:46:49]} {[%emt 00:09:10]} Bd8
{[%clk 01:01:52]} {[%emt 00:05:44]} 17. g4 {[%clk 00:43:30]} {[%emt 00:03:49]}
Nc5 {[%clk 00:52:07]} {[%emt 00:10:14]} 18. Nxc5 {[%clk 00:38:26]} {[%emt
00:05:33]} bxc5 {[%clk 00:47:58]} {[%emt 00:04:39]} 19. Bf4 {[%clk 00:34:55]}
{[%emt 00:04:00]} Bc7 {[%clk 00:39:35]} {[%emt 00:08:54]} 20. Rc2 {[%clk
00:30:48]} {[%emt 00:04:37]} Nd7 {[%clk 00:32:36]} {[%emt 00:07:30]} 21. Rcd2
{[%clk 00:27:17]} {[%emt 00:04:01]} e5 {[%clk 00:29:21]} {[%emt 00:03:45]} 22.
Be3 {[%clk 00:26:58]} {[%emt 00:00:48]} Nf8 {[%clk 00:28:44]} {[%emt 00:01:07]}
23. Nd5 {[%clk 00:19:52]} {[%emt 00:07:37]} Ba5 {[%clk 00:27:29]} {[%emt
00:01:45]} 24. b4 {[%clk 00:13:29]} {[%emt 00:06:52]} cxb4 {[%clk 00:25:37]}
{[%emt 00:02:23]} 25. Ba7 {[%clk 00:13:43]} {[%emt 00:00:16]} Qa8 {[%clk
00:25:06]} {[%emt 00:01:01]} 26. Bb6 {[%clk 00:13:13]} {[%emt 00:00:59]} Bxd5
{[%clk 00:23:24]} {[%emt 00:02:13]} 27. Rxd5 {[%clk 00:13:06]} {[%emt
00:00:36]} Bxb6 {[%clk 00:22:39]} {[%emt 00:01:16]} 28. Qxb6 {[%clk 00:13:27]}
{[%emt 00:00:08]} Ne6 {[%clk 00:14:52]} {[%emt 00:08:17]} 29. Rxd6 {[%clk
00:11:49]} {[%emt 00:02:09]} Nd4 {[%clk 00:10:29]} {[%emt 00:04:51]} 30. Kf2
{[%clk 00:08:47]} {[%emt 00:03:33]} a5 {[%clk 00:08:16]} {[%emt 00:02:43]} 31.
Rd5 {[%clk 00:06:25]} {[%emt 00:02:52]} Rc6 {[%clk 00:05:14]} {[%emt 00:03:32]}
32. Qxa5 {[%clk 00:04:20]} {[%emt 00:02:35]} Ra6 {[%clk 00:05:31]} {[%emt
00:00:13]} 33. Qxb4 {[%clk 00:04:15]} {[%emt 00:00:36]} Ra4 {[%clk 00:04:31]}
{[%emt 00:01:29]} 34. Qb6 {[%clk 00:03:08]} {[%emt 00:01:36]} Ra6 {[%clk
00:02:59]} {[%emt 00:02:01]} 35. Qb4 {[%clk 00:02:24]} {[%emt 00:01:15]} Ra4
{[%clk 00:02:47]} {[%emt 00:00:43]} 36. Qb6 {[%clk 00:02:45]} {[%emt 00:00:09]}
Rxa2 {[%clk 00:01:59]} {[%emt 00:01:18]} 37. R5xd4 {[%clk 00:01:20]} {[%emt
00:01:54]} exd4 {[%clk 00:02:21]} {[%emt 00:00:08]} 38. Qxd4 {[%clk 00:01:42]}
{[%emt 00:00:09]} Qb8 {[%clk 00:02:07]} {[%emt 00:00:44]} 39. e5 {[%clk
00:01:00]} {[%emt 00:01:13]} g5 {[%clk 00:02:01]} {[%emt 00:00:36]} 40. e6
{[%clk 00:00:35]} {[%emt 00:00:54]} Qxh2+ {[%clk 00:02:11]} {[%emt 00:00:21]}
0-1

[Event "Schack-SM 2022: Mastarklassen"]
[Site "Fyrishov, Idrottsgatan 2, Uppsala, Sweden"]
[Date "2022.07.02"]
[Round "1.9"]
[White "Eriksson, Jorgen"]
[Black "Pettersson, Tobias"]
[Result "1-0"]
[TimeControl "90 minutes for 40 moves + 30 minutes for the rest of the game + 30 seconds per move from move one."]
[WhiteFideId "1701967"]
[BlackFideId "1705962"]
[WhiteElo "2200"]
[BlackElo "2027"]

1. d4 {[%clk 01:30:23]} {[%emt 00:00:36]} d6 {[%clk 01:30:11]} {[%emt
00:00:50]} 2. Nf3 {[%clk 01:30:14]} {[%emt 00:00:38]} g6 {[%clk 01:29:37]}
{[%emt 00:01:04]} 3. g3 {[%clk 01:30:20]} {[%emt 00:00:25]} Bg7 {[%clk
01:29:48]} {[%emt 00:00:18]} 4. Bg2 {[%clk 01:30:40]} {[%emt 00:00:10]} Nf6
{[%clk 01:30:00]} {[%emt 00:00:18]} 5. c4 {[%clk 01:30:54]} {[%emt 00:00:16]}
O-O {[%clk 01:30:14]} {[%emt 00:00:16]} 6. Nc3 {[%clk 01:31:00]} {[%emt
00:00:24]} Nc6 {[%clk 01:30:25]} {[%emt 00:00:18]} 7. O-O {[%clk 01:27:58]}
{[%emt 00:03:33]} Bf5 {[%clk 01:30:02]} {[%emt 00:00:53]} 8. b3 {[%clk
01:26:02]} {[%emt 00:02:26]} e5 {[%clk 01:22:22]} {[%emt 00:08:10]} 9. e3
{[%clk 01:13:24]} {[%emt 00:13:09]} a5 {[%clk 01:17:53]} {[%emt 00:04:59]} 10.
Bb2 {[%clk 01:11:36]} {[%emt 00:02:18]} Re8 {[%clk 01:13:12]} {[%emt 00:05:11]}
11. dxe5 {[%clk 00:50:23]} {[%emt 00:21:43]} dxe5 {[%clk 01:12:20]} {[%emt
00:01:21]} 12. Qxd8 {[%clk 00:44:16]} {[%emt 00:06:39]} Raxd8 {[%clk 01:11:20]}
{[%emt 00:01:30]} 13. Nb5 {[%clk 00:44:08]} {[%emt 00:00:37]} Rc8 {[%clk
01:09:15]} {[%emt 00:02:34]} 14. h3 {[%clk 00:40:56]} {[%emt 00:03:43]} h5
{[%clk 01:04:48]} {[%emt 00:04:57]} 15. Rfd1 {[%clk 00:40:38]} {[%emt
00:00:48]} a4 {[%clk 00:59:25]} {[%emt 00:05:52]} 16. Ne1 {[%clk 00:33:03]}
{[%emt 00:08:06]} Bf8 {[%clk 00:55:59]} {[%emt 00:03:55]} 17. bxa4 {[%clk
00:24:54]} {[%emt 00:08:40]} Be6 {[%clk 00:54:04]} {[%emt 00:02:23]} 18. Rac1
{[%clk 00:23:16]} {[%emt 00:02:10]} Nd7 {[%clk 00:52:46]} {[%emt 00:01:48]} 19.
Nd3 {[%clk 00:21:06]} {[%emt 00:02:40]} Bf5 {[%clk 00:47:58]} {[%emt 00:05:18]}
20. Ba1 {[%clk 00:10:08]} {[%emt 00:11:29]} Nc5 {[%clk 00:38:13]} {[%emt
00:10:13]} 21. Nxc5 {[%clk 00:09:58]} {[%emt 00:00:41]} Bxc5 {[%clk 00:38:34]}
{[%emt 00:00:09]} 22. Bc3 {[%clk 00:09:30]} {[%emt 00:00:59]} Bb6 {[%clk
00:37:24]} {[%emt 00:01:39]} 23. Be1 {[%clk 00:08:23]} {[%emt 00:01:37]} Ra8
{[%clk 00:28:37]} {[%emt 00:09:16]} 24. c5 {[%clk 00:08:40]} {[%emt 00:00:14]}
Ba5 {[%clk 00:28:38]} {[%emt 00:00:29]} 25. Bxa5 {[%clk 00:08:45]} {[%emt
00:00:25]} Rxa5 {[%clk 00:28:07]} {[%emt 00:01:00]} 26. Nxc7 {[%clk 00:08:34]}
{[%emt 00:00:42]} Rc8 {[%clk 00:26:45]} {[%emt 00:01:51]} 27. Nd5 {[%clk
00:08:47]} {[%emt 00:00:17]} Be6 {[%clk 00:22:26]} {[%emt 00:04:49]} 28. Nb6
{[%clk 00:09:03]} {[%emt 00:00:14]} Rc7 {[%clk 00:22:17]} {[%emt 00:00:40]} 29.
Rd2 {[%clk 00:05:04]} {[%emt 00:04:29]} Nb4 {[%clk 00:20:42]} {[%emt 00:02:04]}
30. a3 {[%clk 00:04:19]} {[%emt 00:01:15]} Na6 {[%clk 00:21:05]} {[%emt
00:00:06]} 31. c6 {[%clk 00:03:36]} {[%emt 00:01:15]} bxc6 {[%clk 00:21:11]}
{[%emt 00:00:24]} 32. Rxc6 {[%clk 00:03:41]} {[%emt 00:00:25]} Rxc6 {[%clk
00:14:35]} {[%emt 00:07:06]} 33. Bxc6 {[%clk 00:04:04]} {[%emt 00:00:07]} Bxh3
{[%clk 00:08:42]} {[%emt 00:06:23]} 34. Rd5 {[%clk 00:01:58]} {[%emt 00:02:36]}
Rxd5 {[%clk 00:06:29]} {[%emt 00:02:43]} 35. Nxd5 {[%clk 00:01:48]} {[%emt
00:00:39]} Be6 {[%clk 00:06:37]} {[%emt 00:00:22]} 36. a5 {[%clk 00:01:21]}
{[%emt 00:00:58]} Bxd5 {[%clk 00:03:46]} {[%emt 00:03:21]} 37. Bxd5 {[%clk
00:01:49]} {[%emt 00:00:02]} Nc7 {[%clk 00:03:48]} {[%emt 00:00:28]} 38. Bc4
{[%clk 00:01:26]} {[%emt 00:00:52]} Kf8 {[%clk 00:04:02]} {[%emt 00:00:16]} 39.
a6 {[%clk 00:01:42]} {[%emt 00:00:14]} Ke7 {[%clk 00:03:25]} {[%emt 00:01:06]}
40. a7 {[%clk 00:01:59]} {[%emt 00:00:13]} 1-0